bitfinex-derivatives/quotes_BTCF0:USTF0_20251128
["timestamp","ask_amount","ask_price","bid_price","bid_amount"]
[1764325507041,0.002,91666.0,91665.0,0.42057659]
[1764325508347,0.002,91666.0,91665.0,0.05977659]
[1764325509640,0.04648,91666.0,91665.0,0.05977659]
[1764325510051,0.002,91666.0,91665.0,0.05977659]
[1764325512246,0.04648,91666.0,91665.0,0.05977659]
[1764325513047,0.0236,91666.0,91665.0,0.05977659]
[1764325513449,0.002,91666.0,91665.0,0.05977659]
[1764325516653,0.07258497,91666.0,91665.0,0.05977659]
[1764325517454,0.05027497,91666.0,91665.0,0.05977659]
[1764325517954,0.02825497,91666.0,91665.0,0.05977659]
[1764325518755,0.05027497,91666.0,91665.0,0.05977659]
[1764325519356,0.02825497,91666.0,91665.0,0.05977659]
[1764325520455,0.05027497,91666.0,91665.0,0.05977659]
[1764325521157,0.05027728,91666.0,91665.0,0.05977659]
[1764325521860,0.44258728,91666.0,91665.0,0.01674659]
[1764325522155,0.44258728,91666.0,91632.0,0.05852]
[1764325522156,0.04433,91633.0,91632.0,0.05852]
[1764325522549,0.02202,91633.0,91632.0,0.05852]
[1764325522760,0.40513,91639.0,91638.0,0.04578]
[1764325522951,0.43433,91639.0,91638.0,0.04578]
[1764325524248,0.43433,91639.0,91638.0,0.04778]
[1764325524957,0.43433,91639.0,91638.0,0.04678]
[1764325526149,0.43433,91639.0,91638.0,0.0433436]
[1764325527063,0.43433,91639.0,91638.0,0.0200136]
[1764325527252,0.43433,91639.0,91638.0,0.0433436]
[1764325528252,0.41433,91639.0,91638.0,0.0433436]
[1764325529258,0.41433,91639.0,91638.0,0.06117868]
[1764325529662,0.13433,91639.0,91638.0,0.06117868]
[1764325529858,0.04433,91639.0,91638.0,0.06117868]
[1764325531466,0.38282,91642.0,91641.0,0.04578]
[1764325531759,0.3608,91642.0,91641.0,0.04578]
[1764325532965,0.3608,91642.0,91641.0,0.04678]
[1764325533165,0.40527,91642.0,91641.0,0.04678]
[1764325534064,0.40527,91642.0,91641.0,0.04624]
[1764325543768,0.40527,91642.0,91641.0,0.001]
[1764325543968,0.84527,91642.0,91641.0,0.001]
[1764325550982,0.84527,91642.0,91641.0,0.02321]
[1764325551279,0.84527,91642.0,91641.0,0.046]
[1764325552183,0.84527,91642.0,91641.0,0.001]
[1764325557684,0.84527,91642.0,91641.0,0.046]
[1764325557881,0.77527,91642.0,91641.0,0.046]
[1764325559884,0.77527,91642.0,91641.0,0.001]
[1764325562789,0.77527,91642.0,91641.0,0.02321]
[1764325563187,0.77527,91642.0,91641.0,0.001]
[1764325563389,0.7861831,91642.0,91641.0,0.0119132]
[1764325564387,0.40527,91642.0,91641.0,0.0119132]
[1764325564593,0.49527,91642.0,91641.0,0.0119132]
[1764325564788,0.78527,91642.0,91641.0,0.0330032]
[1764325566588,0.81199781,91642.0,91641.0,0.0330032]
[1764325569399,0.81199781,91642.0,91641.0,0.0550032]
[1764325572304,0.82291091,91642.0,91641.0,0.0550032]
[1764325576310,0.81199781,91642.0,91641.0,0.0550032]
[1764325576507,0.78527,91642.0,91641.0,0.0550032]
[1764325579607,0.40527,91642.0,91641.0,0.0676132]
[1764325579805,0.04385,91642.0,91641.0,0.0676132]
[1764325580014,0.04385,91642.0,91641.0,0.0119132]
[1764325580211,0.04385,91642.0,91641.0,0.0330332]
[1764325580713,0.83135601,91642.0,91641.0,0.001]
[1764325592720,0.53135601,91642.0,91641.0,0.0598]
[1764325593523,0.63135601,91642.0,91641.0,0.0598]
[1764325595129,0.80327601,91642.0,91641.0,0.0598]
[1764325595528,0.97327601,91642.0,91641.0,0.04651]
[1764325596527,0.97327601,91642.0,91641.0,0.001]
[1764325598434,0.94657,91642.0,91641.0,0.001]
[1764325598629,0.97323279,91642.0,91641.0,0.001]
[1764325599535,0.97323279,91642.0,91641.0,0.02342]
[1764325600738,0.97323279,91642.0,91641.0,0.001]
[1764325601536,0.97323279,91642.0,91641.0,0.02342]
[1764325602240,0.97323279,91642.0,91641.0,0.0119132]
[1764325602636,0.97323279,91642.0,91641.0,0.001]
[1764325619257,0.61243279,91642.0,91641.0,0.001]
[1764325619446,0.97323279,91642.0,91641.0,0.001]
[1764325624751,0.97323279,91642.0,91641.0,0.0119132]
[1764325625055,0.97323279,91642.0,91641.0,0.001]
[1764325627447,0.61243279,91642.0,91641.0,0.001]
[1764325627758,0.97323279,91642.0,91641.0,0.001]
[1764325628559,0.61243279,91642.0,91641.0,0.001]
[1764325628756,0.97323279,91642.0,91641.0,0.001]
[1764325632561,0.61243279,91642.0,91641.0,0.001]
[1764325632763,0.97323279,91642.0,91641.0,0.001]
[1764325634863,0.97323279,91642.0,91641.0,0.0119132]
[1764325635766,0.97323279,91642.0,91641.0,0.001]
[1764325645573,0.61243279,91642.0,91641.0,0.001]
[1764325645772,0.97323279,91642.0,91641.0,0.001]
[1764325646657,0.97323279,91642.0,91641.0,0.02403]
[1764325646863,0.97323279,91642.0,91641.0,0.001]
[1764325650463,0.97323279,91642.0,91641.0,0.02403]
[1764325650668,0.97323279,91642.0,91641.0,0.04686]
[1764325652269,0.97323279,91642.0,91641.0,0.001]
[1764325659973,0.61243279,91642.0,91641.0,0.001]
[1764325660278,0.97323279,91642.0,91641.0,0.001]
[1764325665982,0.0540934,91639.0,91638.0,0.03884508]
[1764325666180,0.50075619,91639.0,91638.0,0.03884508]
[1764325666789,0.50075619,91639.0,91638.0,0.07408508]
[1764325667779,0.30175619,91639.0,91638.0,0.07408508]
[1764325669295,0.30175619,91639.0,91638.0,0.06113508]
[1764325676401,0.2750934,91639.0,91638.0,0.06113508]
[1764325676597,0.30147076,91639.0,91638.0,0.06113508]
[1764325676798,0.66227076,91639.0,91638.0,0.06113508]
[1764325691309,0.66227076,91639.0,91638.0,0.04048508]
[1764325692207,0.66227076,91639.0,91638.0,0.06253508]
[1764325695718,0.66227076,91639.0,91638.0,0.01783508]
[1764325696018,0.0545644,91631.0,91630.0,0.05788]
[1764325696315,0.6664444,91631.0,91630.0,0.05788]
[1764325696507,0.6664444,91631.0,91630.0,0.07478992]
[1764325696816,0.69276747,91631.0,91630.0,0.07478992]
[1764325697706,0.69376747,91631.0,91630.0,0.07478992]
[1764325701614,0.68285307,91631.0,91630.0,0.07478992]
[1764325702114,0.69376747,91631.0,91630.0,0.07478992]
[1764325704518,0.68285307,91631.0,91630.0,0.07478992]
[1764325704722,0.63920307,91631.0,91630.0,0.07478992]
[1764325705425,0.66039307,91631.0,91630.0,0.07478992]
[1764325705626,0.68171307,91631.0,91630.0,0.07478992]
[1764325706323,0.69262747,91631.0,91630.0,0.07478992]
[1764325706725,0.6663044,91631.0,91630.0,0.07478992]
[1764325707815,0.65539,91631.0,91630.0,0.07478992]
[1764325713724,0.6663044,91631.0,91630.0,0.07478992]
[1764325715024,0.65539,91631.0,91630.0,0.07478992]
[1764325721829,0.65539,91631.0,91630.0,0.03955992]
[1764325722229,0.65539,91631.0,91630.0,0.06105992]
[1764325737747,0.65539,91631.0,91630.0,0.01690992]
[1764325737948,0.04439,91630.0,91629.0,0.01107813]
[1764325738144,0.43439,91630.0,91629.0,0.03232813]
[1764325739347,0.43439,91630.0,91629.0,0.01107813]
[1764325740351,0.43439,91630.0,91629.0,0.03232813]
[1764325741455,0.43439,91630.0,91629.0,0.04953457]
[1764325741651,0.43439,91630.0,91629.0,0.07103457]
[1764325745657,0.04439,91630.0,91629.0,0.07103457]
[1764325745862,0.02196,91630.0,91629.0,0.07103457]
[1764325746059,0.0439,91630.0,91629.0,0.07103457]
[1764325746863,0.07023561,91630.0,91629.0,0.07103457]
[1764325755466,0.08115011,91630.0,91629.0,0.06012007]
[1764325755767,0.51115011,91630.0,91629.0,0.01737007]
[1764325756072,0.50887561,91630.0,91629.0,0.01737007]
[1764325756670,0.50887561,91630.0,91629.0,0.04030007]
[1764325756671,0.50023561,91630.0,91629.0,0.04030007]
[1764325757472,0.50023561,91630.0,91629.0,0.01737007]
[1764325757674,0.50023561,91630.0,91629.0,0.04030007]
[1764325758970,0.50023561,91630.0,91629.0,0.06357007]
[1764325759166,0.50023561,91630.0,91629.0,0.01737007]
[1764325759772,0.50023561,91630.0,91629.0,0.03864007]
[1764325760277,0.50023561,91630.0,91629.0,0.05971007]
[1764325763569,0.51115011,91630.0,91629.0,0.05971007]
[1764325764166,0.87195011,91630.0,91629.0,0.05971007]
[1764325764573,0.86103561,91630.0,91629.0,0.05971007]
[1764325764973,0.86083249,91630.0,91629.0,0.05971007]
[1764325766780,0.6047,91630.0,91629.0,0.05971007]
[1764325766981,0.7947,91630.0,91629.0,0.05971007]
[1764325771987,0.4339,91630.0,91629.0,0.05971007]
[1764325772186,0.7947,91630.0,91629.0,0.05971007]
[1764325772387,0.5747,91630.0,91629.0,0.05971007]
[1764325773286,0.7847,91630.0,91629.0,0.05971007]
[1764325786789,0.81093285,91630.0,91629.0,0.05971007]
[1764325795890,0.45013285,91630.0,91629.0,0.05971007]
[1764325796803,0.4239,91630.0,91629.0,0.05971007]
[1764325804114,0.21578,91630.0,91629.0,0.05971007]
[1764325804514,0.0439,91630.0,91629.0,0.05971007]
[1764325804714,0.21578,91630.0,91629.0,0.05971007]
[1764325809330,0.21578,91630.0,91629.0,0.06135007]
[1764325809714,0.24201592,91630.0,91629.0,0.06135007]
[1764325812228,0.24201592,91630.0,91629.0,0.07226467]
[1764325822125,0.04819592,91630.0,91629.0,0.07226467]
[1764325822330,0.02623592,91630.0,91629.0,0.07226467]
[1764325822928,0.04857592,91630.0,91629.0,0.07226467]
[1764325823933,0.07145592,91630.0,91629.0,0.07226467]
[1764325826025,0.07145592,91630.0,91629.0,0.10522467]
[1764325827334,0.07145592,91630.0,91629.0,0.11884467]
[1764325835131,0.49237042,91630.0,91629.0,0.05033007]
[1764325835335,0.49237042,91630.0,91629.0,0.01737007]
[1764325835840,0.0644557,91620.0,91619.0,0.00012268]
[1764325836030,0.0644557,91620.0,91596.0,0.15030112]
[1764325836031,0.0556272,91607.0,91596.0,0.15030112]
[1764325836233,0.0556272,91607.0,91596.0,0.04406]
[1764325836234,0.0556284,91597.0,91596.0,0.04406]
[1764325836433,0.45471,91597.0,91596.0,0.04406]
[1764325836936,0.45481359,91597.0,91596.0,0.05709]
[1764325837137,0.45481359,91597.0,91591.0,0.0549791]
[1764325837138,0.04471,91592.0,91591.0,0.0549791]
[1764325837338,0.43471,91592.0,91591.0,0.0109191]
[1764325837535,0.43471,91592.0,91591.0,0.0549791]
[1764325838232,0.15471,91592.0,91591.0,0.0549791]
[1764325838437,0.41471,91592.0,91591.0,0.0549791]
[1764325839244,0.371,91592.0,91591.0,0.0549791]
[1764325839428,0.011,91592.0,91591.0,0.0879491]
[1764325839632,0.44571,91592.0,91591.0,0.0879491]
[1764325840633,0.44571,91592.0,91591.0,0.07703]
[1764325841332,0.44571,91592.0,91591.0,0.05599]
[1764325843943,0.44571,91592.0,91591.0,0.02302]
[1764325845948,0.04471,91590.0,91589.0,0.0549793]
[1764325846140,0.82551,91590.0,91589.0,0.0549793]
[1764325846352,0.99739,91590.0,91589.0,0.0549793]
[1764325848048,0.99739,91590.0,91589.0,0.0879493]
[1764325848748,0.99839,91590.0,91589.0,0.0879493]
[1764325850949,1.0093093,91590.0,91589.0,0.0879493]
[1764325852939,1.0093093,91590.0,91589.0,0.0669093]
[1764325853254,1.0093093,91590.0,91589.0,0.0879493]
[1764325854250,0.67839,91590.0,91589.0,0.0879493]
[1764325854753,0.53372,91590.0,91589.0,0.0879493]
[1764325856634,0.55608,91590.0,91589.0,0.0879493]
[1764325858055,0.00010359,91597.0,91596.0,0.0680085]
[1764325858257,0.3608,91607.0,91605.0,0.0549775]
[1764325859347,0.0012208,91606.0,91605.0,0.0549775]
[1764325861148,0.0022208,91606.0,91605.0,0.0549775]
[1764325861761,0.0012208,91606.0,91605.0,0.0549775]
[1764325862054,0.0002208,91606.0,91605.0,0.0569775]
[1764325862545,0.0002208,91606.0,91605.0,0.0549775]
[1764325862746,0.0002208,91606.0,91605.0,0.0559775]
[1764325863357,0.0002208,91606.0,91605.0,0.0549775]
[1764325865954,0.0002208,91606.0,91605.0,0.06989265]
[1764325869367,0.0002208,91606.0,91605.0,0.07189265]
[1764325870066,0.0002208,91606.0,91605.0,0.07089265]
[1764325871358,0.0002208,91606.0,91605.0,0.06989265]
[1764325871653,0.0002208,91606.0,91605.0,0.07189265]
[1764325871859,0.0002208,91606.0,91605.0,0.43269265]
[1764325872061,0.0002208,91606.0,91605.0,0.43169265]
[1764325874669,0.0002208,91606.0,91605.0,0.43269265]
[1764325875165,0.0002208,91606.0,91605.0,0.43069265]
[1764325875463,0.0002208,91606.0,91605.0,0.43269265]
[1764325877763,0.3608,91621.0,91605.0,0.43269265]
[1764325877764,0.18569671,91630.0,91629.0,0.0682246]
[1764325877958,0.07045243,91630.0,91629.0,0.0682246]
[1764325879058,0.08136693,91630.0,91629.0,0.0552946]
[1764325879359,0.08236693,91630.0,91629.0,0.0552946]
[1764325883354,0.07145243,91630.0,91629.0,0.0552946]
[1764325883954,0.07145243,91630.0,91629.0,0.0682246]
[1764325885168,0.07145243,91630.0,91629.0,0.08212223]
[1764325886767,0.07145243,91630.0,91629.0,0.06919223]
[1764325889168,0.07145243,91630.0,91629.0,0.08212223]
[1764325890274,0.02751243,91630.0,91629.0,0.08212223]
[1764325890461,0.001,91630.0,91629.0,0.44292223]
[1764325890869,0.02220373,91639.0,91638.0,0.05731]
[1764325891173,0.04879781,91639.0,91638.0,0.05731]
[1764325891470,0.07069781,91639.0,91638.0,0.0682235]
[1764325891867,0.07169781,91639.0,91638.0,0.0682235]
[1764325894876,0.04510373,91639.0,91638.0,0.0682235]
[1764325896067,0.02320373,91639.0,91638.0,0.0682235]
[1764325896473,0.00116373,91639.0,91638.0,0.0682235]
[1764325897777,0.00016373,91639.0,91638.0,0.0682235]
[1764325898180,0.00016373,91639.0,91638.0,0.4300235]
[1764325899672,0.00027279,91646.0,91645.0,0.0551727]
[1764325900966,0.02138279,91646.0,91645.0,0.0551727]
[1764325901170,0.04268279,91646.0,91645.0,0.0551727]
[1764325907587,0.04268279,91646.0,91645.0,0.0331627]
[1764325907788,0.04268279,91646.0,91645.0,0.0551727]
[1764325909390,0.04268279,91646.0,91645.0,0.06907375]
[1764325913496,0.04268279,91646.0,91645.0,0.05816105]
[1764325915094,0.40348279,91646.0,91645.0,0.05816105]
[1764325918797,0.42998087,91646.0,91645.0,0.05816105]
[1764325924900,0.02677087,91646.0,91645.0,0.05816105]
[1764325925102,0.00016297,91655.0,91654.0,0.0559216]
[1764325935302,0.3608,91666.0,91665.0,0.0662503]
[1764325935915,0.38246,91666.0,91665.0,0.0662503]
[1764325936116,0.40351,91674.0,91673.0,0.04504]
[1764325937009,0.42976112,91674.0,91673.0,0.04504]
[1764325937409,0.06896112,91674.0,91673.0,0.04504]
[1764325938114,0.06996112,91674.0,91673.0,0.04504]
[1764325940316,0.06996112,91674.0,91673.0,0.0559494]
[1764325940711,0.08087042,91674.0,91673.0,0.0559494]
[1764325941117,0.06996112,91674.0,91673.0,0.0559494]
[1764325943118,0.06996112,91674.0,91673.0,0.06949149]
[1764325944820,0.04371,91674.0,91673.0,0.06949149]
[1764325947323,0.06994204,91674.0,91673.0,0.06949149]
[1764325954421,0.06994204,91674.0,91673.0,0.04754149]
[1764325954624,0.52256204,91674.0,91673.0,0.01354209]
[1764325954931,0.52256204,91674.0,91668.0,0.0564499]
[1764325954932,0.04295,91669.0,91668.0,0.0564499]
[1764325955132,0.08009194,91669.0,91668.0,0.0564499]
[1764325955731,0.53009194,91669.0,91668.0,0.04554]
[1764325956031,0.53009194,91669.0,91668.0,0.02252]
[1764325956325,0.53009194,91669.0,91668.0,0.04554]
[1764325956536,0.53109194,91669.0,91668.0,0.04554]
[1764325957237,0.53109194,91669.0,91668.0,0.05645]
[1764325958936,0.53109194,91669.0,91668.0,0.04554]
[1764325962136,0.53109194,91669.0,91668.0,0.05934]
[1764325962439,0.51109194,91669.0,91668.0,0.05934]
[1764325962830,0.22109194,91669.0,91668.0,0.05934]
[1764325963839,0.21018204,91669.0,91668.0,0.05934]
[1764325964143,0.07018204,91669.0,91668.0,0.05934]
[1764325970938,0.07018204,91669.0,91668.0,0.04554]
[1764325972248,0.08109194,91669.0,91668.0,0.04554]
[1764325972436,0.07018204,91669.0,91668.0,0.04554]
[1764325976044,0.07018204,91669.0,91668.0,0.05934]
[1764325976237,0.07026234,91669.0,91668.0,0.05934]
[1764325979443,0.04909234,91669.0,91668.0,0.05934]
[1764325979642,0.02731234,91669.0,91668.0,0.05934]
[1764325979947,0.04909234,91669.0,91668.0,0.05934]
[1764325982145,0.07026234,91669.0,91668.0,0.05934]
[1764325984850,0.07218234,91669.0,91668.0,0.05934]
[1764325993153,0.07218234,91669.0,91668.0,0.04554]
[1764325993355,0.07218234,91669.0,91668.0,0.02252]
[1764325993558,0.07218234,91669.0,91668.0,0.04375]
[1764325994459,0.07218234,91669.0,91668.0,0.05671]
[1764326002364,0.05796,91668.0,91667.0,0.06703]
[1764326002563,0.44427234,91668.0,91667.0,0.06703]
[1764326003558,0.44527234,91668.0,91667.0,0.08826]
[1764326005470,0.44515131,91668.0,91667.0,0.08826]
[1764326008672,0.02719131,91668.0,91667.0,0.08826]
[1764326008973,0.02719131,91668.0,91667.0,0.44906]
[1764326009370,0.001,91668.0,91667.0,0.44906]
[1764326009675,0.04538267,91686.0,91685.0,0.0544379]
[1764326009876,0.07156869,91686.0,91685.0,0.0544379]
[1764326011271,0.04538267,91686.0,91685.0,0.0544379]
[1764326011672,0.04638267,91686.0,91685.0,0.0544379]
[1764326012278,0.00027267,91686.0,91685.0,0.0544379]
[1764326012480,0.00127267,91686.0,91685.0,0.0544379]
[1764326013066,0.51515418,91710.0,91685.0,0.0544379]
[1764326013067,0.90302613,91701.0,91700.0,0.0682062]
[1764326013380,0.929172,91701.0,91700.0,0.0555162]
[1764326013567,1.37915754,91701.0,91700.0,0.0222]
[1764326014374,1.35302613,91701.0,91700.0,0.0222]
[1764326014583,1.35402613,91701.0,91700.0,0.0222]
[1764326014778,0.04433,91697.0,91696.0,0.0222]
[1764326014989,0.04433,91694.0,91693.0,0.0222]
[1764326015175,0.42433,91694.0,91693.0,0.0222]
[1764326015581,0.42433,91694.0,91693.0,0.04461]
[1764326016576,0.42433,91694.0,91693.0,0.07842]
[1764326016868,0.45043241,91694.0,91693.0,0.07842]
[1764326017275,0.42433,91694.0,91693.0,0.07842]
[1764326017585,0.42533,91694.0,91693.0,0.07842]
[1764326022988,0.42533,91694.0,91693.0,0.07553059]
[1764326042802,0.02256,91694.0,91693.0,0.07553059]
[1764326043005,0.04456,91694.0,91693.0,0.07553059]
[1764326043299,0.001,91694.0,91693.0,0.07553059]
[1764326043500,0.04509,91694.0,91693.0,0.07553059]
[1764326046301,0.02309,91694.0,91693.0,0.07553059]
[1764326046605,0.02309,91694.0,91693.0,0.43633059]
[1764326047300,0.40489,91710.0,91709.0,0.0444]
[1764326047499,0.07029496,91710.0,91709.0,0.0553051]
[1764326051603,0.04409,91710.0,91709.0,0.0553051]
[1764326053509,0.00678,91740.0,91724.0,0.01277]
[1764326053708,0.04436255,91726.0,91725.0,0.0553032]
[1764326054908,0.45436255,91726.0,91725.0,0.0334432]
[1764326055114,0.45436255,91726.0,91725.0,0.0109032]
[1764326055304,0.04409,91725.0,91724.0,0.0119033]
[1764326055498,0.48409,91725.0,91724.0,0.0119033]
[1764326055909,0.48409,91725.0,91724.0,0.0457133]
[1764326056112,0.51012269,91725.0,91724.0,0.02532373]
[1764326056316,0.51011802,91725.0,91724.0,0.02532373]
[1764326057211,0.51111802,91725.0,91724.0,0.02532373]
[1764326057715,0.51111802,91725.0,91724.0,0.03824109]
[1764326059402,0.51111802,91725.0,91724.0,0.01291736]
[1764326059607,0.51111802,91725.0,91723.0,0.0109034]
[1764326059608,0.05765,91724.0,91723.0,0.0109034]
[1764326059914,0.47367802,91724.0,91723.0,0.0109034]
[1764326060113,0.47367802,91724.0,91723.0,0.0553034]
[1764326060717,0.47467802,91724.0,91723.0,0.0553034]
[1764326062118,0.47467802,91724.0,91723.0,0.0109034]
[1764326062310,0.47467802,91724.0,91723.0,0.02388894]
[1764326062510,0.47467802,91724.0,91723.0,0.06944894]
[1764326066122,0.47467802,91724.0,91723.0,0.02388894]
[1764326067717,0.47467802,91724.0,91723.0,0.01298554]
[1764326067921,0.04464,91719.0,91718.0,0.010904]
[1764326068218,0.51066802,91719.0,91718.0,0.010904]
[1764326069126,0.51166802,91719.0,91718.0,0.010904]
[1764326072024,0.51166802,91719.0,91718.0,0.02319122]
[1764326074821,0.51166802,91719.0,91718.0,0.04645122]
[1764326075023,0.51166802,91719.0,91718.0,0.06853122]
[1764326076828,0.48564,91719.0,91718.0,0.06853122]
[1764326077732,0.48564,91719.0,91718.0,0.02319122]
[1764326079228,0.51170833,91719.0,91718.0,0.02319122]
[1764326085637,0.68338833,91719.0,91718.0,0.02319122]
[1764326087546,0.68338833,91719.0,91718.0,0.04645122]
[1764326088040,0.68338833,91719.0,91718.0,0.02319122]
[1764326089745,0.68338833,91719.0,91718.0,0.01228722]
[1764326089940,0.0539146,91713.0,91712.0,0.02535]
[1764326090135,0.88078293,91713.0,91712.0,0.02535]
[1764326091039,0.88178293,91713.0,91712.0,0.02535]
[1764326091534,0.88178293,91713.0,91712.0,0.03766378]
[1764326092442,0.04301,91711.0,91710.0,0.0109049]
[1764326092637,0.63079833,91711.0,91710.0,0.0109049]
[1764326092839,0.04301,91704.0,91703.0,0.00016353]
[1764326093038,0.61473,91704.0,91703.0,0.00016353]
[1764326097945,0.61473,91704.0,91698.0,3.53e-06]
[1764326097946,0.04301,91699.0,91698.0,3.53e-06]
[1764326098149,0.04301,91699.0,91680.0,0.0001249]
[1764326098150,0.0539184,91681.0,91680.0,0.0001249]
[1764326098339,0.9864784,91681.0,91680.0,0.0001249]
[1764326099947,0.9864784,91681.0,91680.0,0.0031249]
[1764326100346,0.053922,91651.0,91650.0,0.3608]
[1764326100650,0.473922,91651.0,91650.0,0.40614]
[1764326101151,0.46301,91651.0,91650.0,0.40614]
[1764326101342,0.4631349,91651.0,91650.0,0.41925]
[1764326101742,0.4631349,91651.0,91650.0,0.40614]
[1764326102049,0.4631349,91651.0,91650.0,0.37354649]
[1764326102439,0.4631349,91651.0,91650.0,0.37454649]
[1764326102641,0.4631349,91651.0,91650.0,0.38154649]
[1764326102943,0.4631349,91651.0,91650.0,0.02074649]
[1764326103148,0.4631349,91651.0,91650.0,0.008]
[1764326104139,0.4631349,91651.0,91650.0,0.007]
[1764326105144,0.04343,91647.0,91646.0,0.00027279]
[1764326105345,0.6662625,91647.0,91646.0,0.00027279]
[1764326106554,0.6662625,91647.0,91646.0,0.01268703]
[1764326107947,0.6662625,91647.0,91646.0,0.05703703]
[1764326107948,0.4943425,91647.0,91646.0,0.05703703]
[1764326108154,0.0211749,91651.0,91650.0,0.0689421]
[1764326108349,0.0001249,91651.0,91650.0,0.0689421]
[1764326108755,0.0435549,91651.0,91650.0,0.0689421]
[1764326109362,0.0445549,91651.0,91650.0,0.0689421]
[1764326109656,0.0445549,91651.0,91650.0,0.04435]
[1764326112350,0.0445549,91651.0,91646.0,0.02359953]
[1764326112351,0.04343,91647.0,91646.0,0.03540703]
[1764326112560,0.4143425,91647.0,91646.0,0.01268703]
[1764326113855,0.4143425,91647.0,91646.0,0.05703703]
[1764326115554,0.4143425,91647.0,91646.0,0.03540703]
[1764326116258,0.4143425,91647.0,91646.0,0.05703703]
[1764326116457,0.40343,91647.0,91646.0,0.05703703]
[1764326116662,0.17196,91647.0,91646.0,0.01268703]
[1764326116960,0.19301,91647.0,91646.0,0.05703703]
[1764326117659,0.02105,91647.0,91646.0,0.05703703]
[1764326120352,0.04354,91647.0,91646.0,0.05703703]
[1764326121061,0.02105,91647.0,91646.0,0.05703703]
[1764326121654,0.04354,91647.0,91646.0,0.05703703]
[1764326125665,0.04354,91647.0,91646.0,0.06794963]
[1764326126861,0.07007478,91647.0,91646.0,0.06794963]
[1764326131255,0.07307478,91647.0,91646.0,0.06794963]
[1764326132972,0.07307478,91647.0,91646.0,0.05716703]
[1764326133158,0.02705538,91647.0,91646.0,0.06807963]
[1764326133470,0.02805538,91647.0,91646.0,0.06807963]
[1764326135563,0.05001538,91647.0,91646.0,0.06807963]
[1764326137674,0.43225538,91647.0,91646.0,0.05716703]
[1764326143472,0.07145538,91647.0,91646.0,0.05716703]
[1764326148071,0.02805538,91647.0,91646.0,0.05716703]
[1764326148375,0.004,91647.0,91646.0,0.05716703]
[1764326153581,0.0435249,91651.0,91650.0,0.05746]
[1764326153882,0.0435249,91651.0,91650.0,0.0683721]
[1764326154581,0.0465249,91651.0,91650.0,0.0683721]
[1764326156981,0.07289401,91651.0,91650.0,0.0683721]
[1764326157785,0.07289401,91651.0,91650.0,0.0553921]
[1764326157984,0.07289401,91651.0,91650.0,0.0683721]
[1764326158871,0.07289401,91651.0,91650.0,0.05746]
[1764326159076,0.0543125,91647.0,91646.0,0.05716703]
[1764326159282,0.45068161,91647.0,91646.0,0.01268703]
[1764326159880,0.45068161,91647.0,91646.0,0.02359963]
[1764326160773,0.45068161,91647.0,91646.0,0.01268703]
[1764326160977,0.45068161,91647.0,91630.0,0.01298]
[1764326160978,0.0447747,91628.0,91627.0,0.0341547]
[1764326161180,0.47488259,91628.0,91627.0,0.0553947]
[1764326162077,0.47488259,91628.0,91627.0,0.0563947]
[1764326162784,0.46396789,91628.0,91627.0,0.0593947]
[1764326163175,0.14396789,91628.0,91627.0,0.0593947]
[1764326166081,0.00010789,91628.0,91627.0,0.0593947]
[1764326167186,0.36096363,91637.0,91636.0,0.0566338]
[1764326167386,0.00016363,91637.0,91636.0,0.0566338]
[1764326168791,0.03402363,91637.0,91636.0,0.0566338]
[1764326171794,0.00016363,91637.0,91636.0,0.0566338]
[1764326172692,0.00016363,91637.0,91636.0,0.07070234]
[1764326172891,0.03402363,91637.0,91636.0,0.07070234]
[1764326178597,0.47402363,91637.0,91636.0,0.07070234]
[1764326179491,0.14402363,91637.0,91636.0,0.07070234]
[1764326180005,0.45402363,91637.0,91636.0,0.07070234]
[1764326181595,0.46493733,91637.0,91636.0,0.01406854]
[1764326181799,0.0447741,91633.0,91632.0,0.0330443]
[1764326182098,0.4747741,91633.0,91632.0,0.0548543]
[1764326183097,0.4747741,91633.0,91632.0,0.0578543]
[1764326183502,0.46386,91633.0,91632.0,0.0578543]
[1764326183799,0.16386,91633.0,91632.0,0.0578543]
[1764326183999,0.1747741,91633.0,91632.0,0.0578543]
[1764326184199,0.4947741,91633.0,91632.0,0.0578543]
[1764326187602,0.48386,91633.0,91632.0,0.0578543]
[1764326189697,0.4947741,91633.0,91632.0,0.0578543]
[1764326191204,0.4947741,91633.0,91632.0,0.003]
[1764326191392,0.52124401,91633.0,91632.0,0.003]
[1764326192301,0.52124401,91633.0,91632.0,0.00278379]
[1764326192501,0.0391958,91619.0,91612.0,0.0109165]
[1764326192697,1.0219558,91619.0,91618.0,0.02240363]
[1764326193097,1.0219558,91619.0,91618.0,0.04486363]
[1764326193498,0.8499958,91619.0,91618.0,0.04486363]
[1764326193699,0.8499958,91619.0,91618.0,0.04986363]
[1764326194504,0.8499958,91619.0,91618.0,0.05086363]
[1764326194701,0.8499958,91619.0,91618.0,0.06598799]
[1764326195910,0.4891958,91619.0,91618.0,0.06598799]
[1764326196908,0.4891958,91619.0,91618.0,0.07690389]
[1764326198205,0.0391958,91619.0,91618.0,0.07690389]
[1764326198509,0.02828,91619.0,91618.0,0.07690389]
[1764326200810,0.0391958,91619.0,91618.0,0.07690389]
[1764326202309,0.02828,91619.0,91618.0,0.07690389]
[1764326206014,0.37494,91621.0,91620.0,0.0694157]
[1764326206211,0.73494,91621.0,91620.0,0.0694157]
[1764326206510,0.74908,91621.0,91620.0,0.0694157]
[1764326206713,0.7208,91621.0,91620.0,0.0694157]
[1764326207217,0.74908,91621.0,91620.0,0.0704157]
[1764326208222,0.74908,91621.0,91620.0,0.0734157]
[1764326213717,0.38908,91632.0,91631.0,0.0556144]
[1764326213921,0.95104,91632.0,91631.0,0.0556144]
[1764326215223,0.95104,91632.0,91631.0,0.0566144]
[1764326215616,0.37494,91632.0,91631.0,0.0576144]
[1764326215816,0.38908,91632.0,91631.0,0.0576144]
[1764326216412,0.3608,91632.0,91631.0,0.0576144]
[1764326216624,0.02844363,91637.0,91636.0,0.0556138]
[1764326217825,0.02944363,91637.0,91636.0,0.0447]
[1764326222132,0.04035733,91637.0,91636.0,0.0447]
[1764326223026,0.47035733,91637.0,91636.0,0.0556138]
[1764326225034,0.45944363,91637.0,91636.0,0.0556138]
[1764326225224,0.02944363,91637.0,91636.0,0.0556138]
[1764326225420,0.01530363,91637.0,91636.0,0.0556138]
[1764326225626,0.00116363,91637.0,91636.0,0.0556138]
[1764326226127,0.56104,91650.0,91649.0,0.0552022]
[1764326226331,0.65104,91650.0,91649.0,0.0552022]
[1764326226526,0.47908,91650.0,91649.0,0.0552022]
[1764326226728,0.46494,91650.0,91649.0,0.0552022]